bitfinex/quotes_SOLUSD_20220104
["timestamp","ask_amount","ask_price","bid_price","bid_amount"]
[1641336249123,23.9753,169.03,168.93,25.5599]
[1641336249524,29.45274368,169.14,168.93,25.5599]
[1641336249525,6.17754368,169.14,168.93,25.5599]
[1641336249725,24.329,169.13,168.94,24.5634]
[1641336249926,24.329,169.13,168.95,102.2777]
[1641336250327,23.088,169.13,168.95,112.59207876]
[1641336250529,23.088,169.13,168.95,114.04058662]
[1641336251852,23.088,169.13,168.96,1.2794]
[1641336252050,23.088,169.13,168.96,1.5394]
[1641336252250,23.088,169.13,168.96,2.0394]
[1641336252456,23.088,169.13,168.97,24.7646]
[1641336252852,23.088,169.13,168.97,25.5246]
[1641336253658,23.8066,169.16,168.97,25.5246]
[1641336253853,24.3066,169.16,168.97,25.5246]
[1641336254054,24.3066,169.16,168.97,26.97310786]
[1641336254452,1.3175,169.17,168.98,1.2739]
[1641336254654,24.6725,169.2,168.98,1.2739]
[1641336254854,24.6725,169.2,168.99,11.00288662]
[1641336255054,24.6725,169.2,169.0,123.7061]
[1641336255257,24.6725,169.2,169.0,125.15460786]
[1641336255456,24.6725,169.2,169.01,1.44850786]
[1641336255656,24.6725,169.2,169.01,4.03780786]
[1641336255856,24.9325,169.2,169.01,4.79780786]
[1641336256265,24.9325,169.2,169.02,24.5022]
[1641336256457,25.4325,169.2,169.02,25.2622]
[1641336258360,25.4325,169.2,169.03,1.2937]
[1641336258562,25.4325,169.2,169.03,1.5537]
[1641336258762,25.4325,169.2,169.03,2.0537]
[1641336258960,25.4325,169.2,169.04,23.2993]
[1641336259362,25.4325,169.2,169.04,24.0593]
[1641336260664,25.4325,169.2,169.05,1.2483]
[1641336260864,25.4325,169.2,169.05,1.7483]
[1641336261064,25.4325,169.2,169.05,2.0083]
[1641336267672,25.4325,169.2,169.05,76.6002]
[1641336267872,25.4325,169.2,169.06,23.2559]
[1641336268073,25.4325,169.2,169.06,23.5159]
[1641336268273,25.4325,169.2,169.06,24.0159]
[1641336269273,25.4325,169.2,169.07,1.3518]
[1641336269575,25.4325,169.2,169.07,2.1118]
[1641336271405,25.4325,169.2,169.07,1.1118]
[1641336271606,25.4325,169.2,169.07,0.26]
[1641336271607,25.1725,169.2,169.07,0.26]
[1641336271804,25.1725,169.2,169.07,0.76]
[1641336272306,24.6725,169.2,169.08,1.2795]
[1641336272605,24.6725,169.2,169.08,1.5395]
[1641336272806,24.6725,169.2,169.08,2.0395]
[1641336273608,25.1725,169.2,169.08,2.0395]
[1641336282918,25.1725,169.2,169.08,1.7795]
[1641336284018,25.4325,169.2,169.08,1.7795]
[1641336284219,25.4325,169.2,169.08,2.0395]
[1641336285020,25.1725,169.2,169.08,2.0395]
[1641336288427,25.1725,169.2,169.08,1.7795]
[1641336289558,25.1725,169.2,169.08,2.0395]
[1641336297465,24.6725,169.2,169.08,2.0395]
[1641336297666,25.1725,169.2,169.08,2.0395]
[1641336298070,24.6725,169.2,169.08,2.0395]
[1641336298469,25.1725,169.2,169.08,2.0395]
[1641336300274,24.6725,169.2,169.08,2.0395]
[1641336300475,25.1725,169.2,169.08,2.0395]
[1641336300672,25.1725,169.2,169.08,1.7795]
[1641336300974,24.9325,169.2,169.08,1.7795]
[1641336302472,25.4325,169.2,169.08,1.7795]
[1641336303673,24.9325,169.2,169.08,1.7795]
[1641336303876,25.4325,169.2,169.08,2.0395]
[1641336304273,24.6725,169.2,169.08,2.0395]
[1641336304976,24.9325,169.2,169.08,2.0395]
[1641336307287,25.4325,169.2,169.08,2.0395]
[1641336307704,24.9325,169.2,169.08,2.0395]
[1641336312008,25.4325,169.2,169.08,2.0395]
[1641336317516,25.4325,169.2,169.08,1.7795]
[1641336317716,24.9325,169.2,169.08,1.7795]
[1641336317915,1.44850786,169.19,169.08,0.5]
[1641336318115,1.44850786,169.19,169.06,23.7559]
[1641336318314,2.20850786,169.19,169.06,23.7559]
[1641336318714,1.44850786,169.18,169.06,23.7559]
[1641336318914,1.94850786,169.18,169.06,23.7559]
[1641336319114,2.20850786,169.18,169.06,23.7559]
[1641336319315,1.44850786,169.17,169.06,23.7559]
[1641336319515,1.70850786,169.17,169.06,24.0159]
[1641336319717,2.20850786,169.17,169.06,24.0159]
[1641336321618,1.70850786,169.17,169.06,25.3104]
[1641336321819,0.26,169.17,169.06,25.3104]
[1641336322020,1.70850786,169.19,169.06,25.3104]
[1641336322221,2.20850786,169.19,169.06,25.3104]
[1641336322419,24.6725,169.2,169.06,25.3104]
[1641336322620,25.1725,169.2,169.06,25.3104]
[1641336322823,26.62100786,169.2,169.06,25.3104]
[1641336323520,25.1725,169.2,169.06,25.3104]
[1641336323721,25.4325,169.2,169.06,25.3104]
[1641336325828,24.9325,169.2,169.06,25.3104]
[1641336338864,24.9325,169.2,169.06,25.0504]
[1641336339962,24.9325,169.2,169.06,25.3104]
[1641336342364,25.4325,169.2,169.06,25.3104]
[1641336342565,24.9325,169.2,169.06,25.3104]
[1641336343364,25.4325,169.2,169.06,25.3104]
[1641336343564,24.9325,169.2,169.06,25.3104]
[1641336346865,24.9325,169.2,169.06,25.0504]
[1641336347968,24.9325,169.2,169.06,25.3104]
[1641336351773,25.4325,169.2,169.06,25.3104]
[1641336356378,26.88100786,169.2,169.06,25.3104]
[1641336362181,26.88100786,169.2,169.06,25.0504]
[1641336363583,26.88100786,169.2,169.06,25.3104]
[1641336365287,26.88100786,169.2,169.06,25.0504]
[1641336366489,26.88100786,169.2,169.06,25.3104]
[1641336368893,26.88100786,169.2,169.06,25.0504]
[1641336369995,26.62100786,169.2,169.06,25.0504]
[1641336370395,26.62100786,169.2,169.06,25.3104]
[1641336371195,26.12100786,169.2,169.06,25.3104]
[1641336371397,24.6725,169.2,169.06,25.3104]
[1641336371998,24.9325,169.2,169.06,25.3104]
[1641336372702,24.6725,169.2,169.06,25.3104]
[1641336374101,24.9325,169.2,169.06,25.3104]
[1641336374501,25.4325,169.2,169.06,25.3104]
[1641336375422,24.9325,169.2,169.06,25.3104]
[1641336375625,25.4325,169.2,169.06,25.3104]
[1641336377729,1.44850786,169.19,169.06,1.7945]
[1641336377925,1.94850786,169.19,169.06,1.7945]
[1641336378126,2.20850786,169.19,169.06,1.7945]
[1641336378328,1.44850786,169.18,169.06,1.7945]
[1641336378525,1.70850786,169.18,169.06,1.7945]
[1641336378927,2.20850786,169.18,169.06,1.7945]
[1641336379127,2.20850786,169.18,169.06,2.0545]
[1641336379526,1.70850786,169.18,169.06,2.0545]
[1641336379927,2.20850786,169.18,169.06,2.0545]
[1641336380127,1.44850786,169.17,169.06,2.0545]
[1641336380529,2.20850786,169.17,169.06,2.0545]
[1641336380929,1.44850786,169.16,169.06,2.0545]
[1641336381332,2.20850786,169.16,169.06,2.0545]
[1641336382231,0.26,169.16,169.06,2.0545]
[1641336382630,26.88100786,169.2,169.06,2.0545]
[1641336383432,26.38100786,169.2,169.06,2.0545]
[1641336383833,26.88100786,169.2,169.06,2.0545]
[1641336385037,26.38100786,169.2,169.06,2.0545]
[1641336385234,26.88100786,169.2,169.06,2.0545]
[1641336387040,26.38100786,169.2,169.06,2.0545]
[1641336387241,26.62100786,169.2,169.06,2.0545]
[1641336387839,25.1725,169.2,169.06,2.0545]
[1641336388141,24.6725,169.2,169.06,2.0545]
[1641336388338,25.1725,169.2,169.06,2.0545]
[1641336388539,24.9325,169.2,169.06,2.0545]
[1641336388941,25.4325,169.2,169.06,2.0545]
[1641336389343,24.9325,169.2,169.06,2.0545]
[1641336391352,25.4325,169.2,169.06,2.0545]
[1641336394973,25.1725,169.2,169.06,2.0545]
[1641336396272,24.6725,169.2,169.06,1.7945]
[1641336396673,25.1725,169.2,169.06,1.7945]
[1641336397074,25.4325,169.2,169.06,1.7945]
[1641336400178,25.4325,169.2,169.06,2.0545]
[1641336405582,26.88100786,169.2,169.06,1.7945]
[1641336406983,26.88100786,169.2,169.06,2.0545]
[1641336408386,26.88100786,169.2,169.06,0.5]
[1641336408786,26.88100786,169.2,169.04,22.9772]
[1641336408787,26.88100786,169.2,169.04,23.4772]
[1641336409187,26.88100786,169.2,169.04,24.8125]
[1641336410990,26.88100786,169.2,169.04,25.0725]
[1641336411390,26.88100786,169.2,169.04,24.5725]
[1641336411993,26.62100786,169.2,169.04,24.5725]
[1641336412491,26.62100786,169.2,169.04,0.76]
[1641336412893,26.62100786,169.2,169.03,10.9883]
[1641336413293,26.88100786,169.2,169.03,10.7283]
[1641336414396,26.88100786,169.2,169.04,22.6751]
[1641336414595,26.88100786,169.2,169.04,22.9351]
[1641336414796,26.88100786,169.2,169.04,23.4351]
[1641336416695,26.88100786,169.2,169.05,1.3085]
[1641336416896,26.88100786,169.2,169.05,1.8085]
[1641336417196,26.88100786,169.2,169.05,2.0685]
[1641336423301,25.4325,169.2,169.05,2.0685]
[1641336423721,25.1725,169.2,169.05,3.51700786]
[1641336424307,25.1725,169.2,169.06,24.3843]
[1641336424508,25.1725,169.2,169.06,24.6443]
[1641336424707,25.1725,169.2,169.07,1.44850786]
[1641336424908,25.1725,169.2,169.07,79.16260786]
[1641336425109,25.1725,169.2,169.07,79.42260786]
[1641336425509,25.1725,169.2,169.08,24.1372]
[1641336426009,25.4325,169.2,169.08,24.8972]
[1641336431845,25.4325,169.2,169.08,26.34570786]
[1641336432045,25.4325,169.2,169.08,24.8972]
[1641336435749,25.1725,169.2,169.08,24.8972]
[1641336437049,25.4325,169.2,169.08,24.8972]
[1641336438250,25.1725,169.2,169.08,24.8972]
[1641336439650,25.4325,169.2,169.08,24.8972]
[1641336439851,25.1725,169.2,169.08,24.8972]
[1641336441051,25.4325,169.2,169.08,24.8972]
[1641336442454,25.4325,169.2,169.08,26.34570786]
[1641336442855,25.4325,169.2,169.08,24.8972]
[1641336445061,25.4325,169.2,169.08,24.6372]
[1641336446467,25.4325,169.2,169.08,24.8972]
[1641336455093,34.2564,169.2,169.08,24.8972]
[1641336457697,34.2564,169.2,169.08,26.34570786]
[1641336464310,33.9964,169.2,169.08,26.34570786]
[1641336464608,33.9964,169.2,169.08,24.8972]
[1641336465009,33.9964,169.2,169.08,26.34570786]
[1641336465513,34.2564,169.2,169.08,26.34570786]
[1641336465710,25.4325,169.2,169.08,26.34570786]
[1641336467310,25.4325,169.2,169.08,24.8972]
[1641336467712,25.4325,169.2,169.09,1.44850786]
[1641336467913,25.4325,169.2,169.09,1.94850786]
[1641336468110,25.4325,169.2,169.09,2.20850786]
[1641336469114,25.4325,169.2,169.1,1.2568]
[1641336469513,25.4325,169.2,169.1,2.0168]
[1641336472315,25.4325,169.2,169.1,3.46530786]
[1641336472524,25.4325,169.2,169.1,3.20530786]
[1641336473815,25.4325,169.2,169.1,1.7568]
[1641336475616,34.3641,169.2,169.1,1.7568]
[1641336478420,34.3641,169.2,169.1,3.20530786]
[1641336479420,34.3641,169.2,169.1,1.7568]
[1641336480121,34.3641,169.2,169.11,1.44850786]
[1641336480323,34.3641,169.2,169.1,1.7568]
[1641336507178,34.3641,169.2,169.1,1.2568]
[1641336507179,33.8641,169.2,169.1,1.2568]
[1641336513189,33.8641,169.2,169.1,1.7568]
[1641336514723,33.8641,169.2,169.1,1.2568]
[1641336519832,33.6041,169.2,169.1,1.2568]
[1641336521135,33.8641,169.2,169.1,1.2568]
[1641336521337,34.3641,169.2,169.1,1.2568]
[1641336523437,33.8641,169.2,169.1,1.2568]
[1641336523838,33.6041,169.2,169.1,1.2568]
[1641336524439,8.9316,169.2,169.1,1.2568]
[1641336525040,9.1916,169.2,169.1,1.2568]
[1641336525642,9.6916,169.2,169.1,1.2568]
[1641336530846,9.1916,169.2,169.1,1.2568]
[1641336541983,9.6916,169.2,169.1,1.2568]
[1641336542185,9.1916,169.2,169.1,1.2568]
[1641336543986,9.1916,169.2,169.1,1.7568]
[1641336544388,9.1916,169.2,169.1,1.2568]
[1641336547989,9.6916,169.2,169.1,1.2568]
[1641336548194,9.1916,169.2,169.1,1.2568]
[1641336551826,11.14010786,169.2,169.1,1.2568]
[1641336552024,10.64010786,169.2,169.1,1.2568]
[1641336572380,11.14010786,169.2,169.1,1.2568]
[1641336572579,10.64010786,169.2,169.1,1.2568]
[1641336575387,11.14010786,169.2,169.1,1.2568]
[1641336575588,10.64010786,169.2,169.1,1.2568]
[1641336578390,10.64010786,169.2,169.08,22.8945]
[1641336578991,24.9514,169.19,169.08,22.8945]
[1641336579591,24.9514,169.19,169.09,1.364]
[1641336581596,1.44850786,169.18,169.09,1.364]
[1641336589733,24.9514,169.19,169.09,1.364]
[1641336591531,26.39990786,169.19,169.09,1.364]
[1641336592534,26.65990786,169.19,169.09,1.364]
[1641336593733,1.44850786,169.19,169.09,1.364]
[1641336595136,1.70850786,169.19,169.09,1.364]
[1641336595337,1.70850786,169.19,169.03,8.9227]
[1641336595636,1.70850786,169.19,169.04,22.8624]
[1641336596536,1.70850786,169.19,169.05,1.306]
[1641336596736,26.64060786,169.19,169.05,1.306]
[1641336596939,26.64060786,169.19,169.05,1.566]
[1641336598838,26.64060786,169.19,169.05,80.8073]
[1641336599238,26.64060786,169.19,169.06,22.886]
[1641336599638,26.64060786,169.19,169.06,23.146]
[1641336600242,26.64060786,169.19,169.07,1.3581]
[1641336613959,26.38060786,169.19,169.07,1.3581]
[1641336614859,26.38060786,169.19,169.07,1.6181]
[1641336615880,26.64060786,169.19,169.07,1.6181]
[1641336620688,26.64060786,169.19,169.07,1.3581]
[1641336623490,86.03060786,169.19,169.07,1.3581]
[1641336624791,6.16429821,169.18,169.07,1.3581]
[1641336624992,23.985,169.17,169.07,1.3581]
[1641336625192,25.43350786,169.17,169.07,1.3581]
[1641336625391,1.44850786,169.16,169.07,1.3581]
[1641336625594,1.70850786,169.16,169.07,1.3581]
[1641336626892,2.20850786,169.16,169.07,1.3581]
[1641336628294,1.44850786,169.15,169.07,1.3581]
[1641336628492,1.70850786,169.15,169.07,1.3581]
[1641336628692,2.20850786,169.15,169.07,1.3581]
[1641336628893,2.20850786,169.15,169.06,22.886]
[1641336629093,1.44850786,169.14,169.06,22.886]
[1641336629494,2.20850786,169.14,169.06,22.886]
[1641336631296,2.20850786,169.14,169.05,79.2413]
[1641336631695,2.20850786,169.14,169.02,1.3107]
[1641336631896,2.20850786,169.14,169.02,1.8107]
[1641336635101,1.44850786,169.13,169.02,1.8107]
[1641336635499,2.20850786,169.13,169.02,1.8107]
[1641336636102,2.20850786,169.13,169.02,1.3107]
[1641336640501,1.44850786,169.12,169.02,1.3107]
[1641336640902,2.20850786,169.12,169.02,1.3107]
[1641336642002,0.76,169.12,169.02,1.3107]
[1641336642204,1.44850786,169.11,168.86,55.19050727]
[1641336642404,1.94850786,169.11,168.95,46.6934]
[1641336642604,2.20850786,169.11,168.95,46.6934]
[1641336642805,1.44850786,169.1,168.95,47.1934]
[1641336643007,1.44850786,169.1,168.96,1.3104]
[1641336643205,2.20850786,169.1,168.96,1.3104]
[1641336643505,2.20850786,169.1,168.96,1.8104]
[1641336643704,1.44850786,169.09,168.96,1.8104]
[1641336643906,1.94850786,169.09,168.96,1.8104]
[1641336644104,2.20850786,169.09,168.96,1.8104]
[1641336644304,1.44850786,169.08,168.96,78.822]
[1641336644508,1.70850786,169.08,168.96,78.822]
[1641336644707,2.20850786,169.08,168.96,78.322]
[1641336644906,1.44850786,169.07,168.96,78.322]
[1641336645107,1.70850786,169.07,168.96,78.322]
[1641336645307,2.20850786,169.07,168.96,78.322]
[1641336645509,3.52550786,169.07,168.97,23.5636]
[1641336647311,3.52550786,169.07,168.98,1.2887]
[1641336653246,3.52550786,169.07,168.96,77.0116]
[1641336653645,3.52550786,169.07,168.97,24.3909]
[1641336661950,3.52550786,169.07,168.97,24.8909]
[1641336663250,3.52550786,169.07,168.97,24.3909]
[1641336663450,3.52550786,169.07,168.97,24.8909]
[1641336663651,3.26550786,169.07,168.97,24.8909]
[1641336664452,1.94850786,169.07,168.97,24.8909]
[1641336665154,1.44850786,169.07,168.97,24.8909]
[1641336665353,0.26,169.07,168.97,24.8909]
[1641336665559,23.8778,169.08,168.97,24.8909]
[1641336666458,24.02782677,169.08,168.97,24.8909]
[1641336667757,0.5,169.08,168.97,24.8909]
[1641336668158,32.8129,169.1,168.97,24.8909]
[1641336668357,33.0729,169.1,168.97,24.8909]
[1641336668557,1.44850786,169.09,168.97,24.8909]
[1641336668859,1.94850786,169.09,168.97,24.8909]
[1641336669057,2.20850786,169.09,168.97,24.8909]
[1641336669258,2.20850786,169.09,168.97,24.3909]
[1641336673261,0.76,169.09,168.97,24.3909]
[1641336673561,1.44850786,169.08,168.97,24.3909]
[1641336673963,2.20850786,169.08,168.97,24.3909]
[1641336674362,1.44850786,169.07,168.97,24.3909]
[1641336674565,1.70850786,169.07,168.97,24.3909]
[1641336674765,2.20850786,169.07,168.97,24.3909]
[1641336674994,1.44850786,169.06,168.97,24.3909]
[1641336675371,1.94850786,169.06,168.97,24.3909]
[1641336675671,2.20850786,169.06,168.97,24.3909]
[1641336675874,1.44850786,169.05,168.97,24.3909]
[1641336676073,0.26,169.05,168.97,24.3909]
[1641336676270,0.76,169.05,168.97,24.3909]
[1641336676673,0.5,169.05,168.97,24.3909]
[1641336676873,2.20850786,169.09,168.97,24.3909]
[1641336677773,1.44850786,169.08,168.97,24.3909]
[1641336677972,2.20850786,169.08,168.97,24.3909]
[1641336678173,2.20850786,169.08,168.91,1.2991]
[1641336678373,1.44850786,169.07,168.91,26.1097]
[1641336678572,1.70850786,169.07,168.91,26.1097]
[1641336678777,2.20850786,169.07,168.91,26.1097]
[1641336679173,1.44850786,169.06,168.91,26.1097]
[1641336679373,1.94850786,169.06,168.91,26.1097]
[1641336679572,1.94850786,169.06,168.92,75.9962]
[1641336679573,2.20850786,169.06,168.92,75.9962]
[1641336679772,1.44850786,169.05,168.92,75.9962]
[1641336679971,1.70850786,169.05,168.92,76.7562]
[1641336680175,2.20850786,169.05,168.93,22.6373]
[1641336680372,2.20850786,169.05,168.93,23.1373]
[1641336680573,1.44850786,169.04,168.93,23.1373]
[1641336680975,2.20850786,169.04,168.93,23.1373]
[1641336681974,2.20850786,169.04,168.94,1.2714]
[1641336682380,2.20850786,169.04,168.94,1.7714]
[1641336682601,1.44850786,169.03,168.94,1.7714]
[1641336683001,2.20850786,169.03,168.94,1.7714]
[1641336685506,1.44850786,169.02,168.94,1.7714]
[1641336685904,1.94850786,169.02,168.94,1.7714]
[1641336686106,2.20850786,169.02,168.94,1.7714]
[1641336686505,1.44850786,169.01,168.94,1.7714]
[1641336686706,0.76,169.02,168.94,1.7714]
[1641336686908,1.94850786,169.03,168.94,1.7714]
[1641336687108,2.20850786,169.03,168.94,1.7714]
[1641336689210,1.44850786,169.02,168.94,1.7714]
[1641336689511,2.20850786,169.02,168.94,1.7714]
[1641336691110,2.20850786,169.02,168.94,0.5]
[1641336691312,2.20850786,169.02,168.93,23.1373]
[1641336691710,2.20850786,169.02,168.94,1.3408]
[1641336691911,2.20850786,169.02,168.94,1.8408]
[1641336693011,2.20850786,169.02,168.94,0.5]
[1641336693214,2.20850786,169.02,168.93,23.1373]
[1641336694114,2.20850786,169.02,168.93,24.4167]
[1641336696519,1.44850786,169.01,168.93,24.4167]
[1641336696918,2.20850786,169.01,168.93,24.4167]
[1641336708646,0.76,169.01,168.93,24.4167]
[1641336708859,26.28050786,169.04,168.93,24.4167]
[1641336712764,26.28050786,169.04,168.93,23.9167]
[1641336726479,26.02050786,169.04,168.93,23.9167]
[1641336726879,34.81416025,169.04,168.93,23.9167]
[1641336727978,35.07416025,169.04,168.93,23.9167]
[1641336734390,43.95706025,169.04,168.93,23.9167]
[1641336734588,43.95706025,169.04,168.91,1.2991]
[1641336734791,35.07416025,169.04,168.91,1.2991]
[1641336735415,35.07416025,169.04,168.91,2.6395]
[1641336735815,8.8833,169.03,168.91,2.6395]
[1641336736015,9.1433,169.03,168.91,2.6395]
[1641336736216,1.44850786,169.02,168.9,23.6945]
[1641336736416,85.04060786,169.02,168.85,74.815]
[1641336736617,25.91060786,169.02,168.85,76.1654]
[1641336736815,1.44850786,169.01,168.85,76.1654]
[1641336737018,1.70850786,169.01,168.85,76.1654]
[1641336737217,2.20850786,169.01,168.86,24.6329]
[1641336737617,1.44850786,169.0,168.86,24.6329]
[1641336737817,8.8854,168.99,168.86,24.6329]
[1641336738018,23.4509,168.98,168.87,1.2644]
[1641336738217,24.89940786,168.98,168.87,1.2644]
[1641336738418,1.44850786,168.97,168.87,1.2644]
[1641336738818,2.20850786,168.97,168.87,1.2644]
[1641336739319,1.44850786,168.96,168.86,24.6329]
[1641336739521,1.70850786,168.96,168.86,24.6329]
[1641336739720,2.20850786,168.96,168.86,24.6329]
[1641336740119,1.44850786,168.95,168.86,24.6329]
[1641336740519,2.20850786,168.95,168.86,24.6329]
[1641336741021,1.44850786,168.94,168.86,24.6329]
[1641336741423,2.20850786,168.94,168.86,24.6329]
[1641336741920,1.44850786,168.93,168.86,24.6329]
[1641336742320,2.20850786,168.93,168.86,24.6329]
[1641336742733,1.44850786,168.92,168.86,24.6329]
[1641336742932,1.94850786,168.92,168.86,24.6329]
[1641336743232,2.20850786,168.92,168.86,24.6329]
[1641336744636,1.94850786,168.92,168.86,24.6329]
[1641336745835,2.20850786,168.92,168.86,24.6329]
[1641336746036,0.76,168.92,168.86,24.6329]
[1641336746342,0.26,168.92,168.86,24.6329]
[1641336746539,2.20850786,168.94,168.86,24.6329]
[1641336754437,2.20850786,168.94,168.87,1.2863]
[1641336761972,1.44850786,168.93,168.87,1.2863]
[1641336762374,1.70850786,168.93,168.87,1.2863]
[1641336765675,1.44850786,168.92,168.87,1.2863]
[1641336766075,1.70850786,168.92,168.87,1.2863]
[1641336774386,0.26,168.92,168.87,1.2863]
[1641336774587,1.44850786,168.95,168.87,1.2863]
[1641336774989,2.20850786,168.95,168.87,1.2863]
[1641336776691,1.44850786,168.94,168.87,1.2863]
[1641336776889,1.94850786,168.94,168.87,1.2863]
[1641336777095,2.20850786,168.94,168.87,1.2863]
[1641336778498,0.26,168.94,168.87,1.2863]
[1641336778698,25.77290786,168.97,168.87,1.2863]
[1641336779499,25.51290786,168.97,168.87,1.2863]
[1641336781224,25.51290786,168.97,168.87,1.5463]
[1641336782626,25.77290786,168.97,168.87,1.5463]
[1641336783728,2.20850786,168.97,168.87,1.5463]
[1641336783928,2.20850786,168.97,168.87,2.0463]
[1641336789137,8.9145,169.0,168.87,2.0463]
[1641336789335,1.44850786,169.01,168.87,2.0463]
[1641336789835,1.94850786,169.01,168.87,2.0463]
[1641336790636,2.20850786,169.01,168.87,2.0463]
[1641336793739,1.94850786,169.01,168.87,2.0463]
[1641336795047,2.20850786,169.01,168.87,2.0463]
[1641336805858,2.20850786,169.01,168.87,1.7863]
[1641336807585,2.20850786,169.01,168.87,2.0463]
[1641336807986,25.38950786,169.01,168.87,2.0463]
[1641336811591,25.12950786,169.01,168.87,2.0463]
[1641336813093,25.38950786,169.01,168.87,2.0463]
[1641336814098,25.12950786,169.01,168.87,2.0463]
[1641336815595,25.38950786,169.01,168.87,2.0463]
[1641336821608,25.12950786,169.01,168.87,2.0463]
[1641336823109,25.38950786,169.01,168.87,2.0463]
[1641336824812,25.38950786,169.01,168.87,1.7863]
[1641336826447,25.38950786,169.01,168.87,2.0463]
[1641336849192,6.16902832,169.0,168.87,2.0463]
[1641336849393,22.991,168.99,168.87,2.0463]
[1641336849593,24.69950786,168.99,168.87,2.0463]
[1641336849995,25.19950786,168.99,168.87,2.0463]
[1641336850795,25.19950786,168.99,168.87,1.7863]
[1641336850996,1.44850786,168.98,168.87,1.7863]
[1641336851396,1.70850786,168.98,168.87,1.7863]
[1641336851996,1.70850786,168.98,168.87,2.0463]
[1641336854896,2.20850786,168.98,168.87,2.0463]
[1641336855897,1.70850786,168.98,168.87,2.0463]
[1641336856299,2.20850786,168.98,168.87,2.0463]
[1641336857399,1.70850786,168.98,168.87,2.0463]
[1641336857798,2.20850786,168.98,168.87,2.0463]
[1641336858197,1.70850786,168.98,168.87,2.0463]
[1641336858600,2.20850786,168.98,168.87,2.0463]
[1641336859699,1.70850786,168.98,168.87,2.0463]
[1641336859899,10.22850786,168.98,168.87,2.0463]
[1641336860100,10.72850786,168.98,168.87,2.0463]
[1641336860306,24.6794,168.97,168.87,2.0463]
[1641336860503,33.4594,168.97,168.87,2.0463]
[1641336862103,34.90790786,168.97,168.87,2.0463]
[1641336862304,26.38790786,168.97,168.87,2.0463]
[1641336864409,26.88790786,168.97,168.87,2.0463]
[1641336864712,8.52,168.96,168.87,2.0463]
[1641336865009,0.26,168.96,168.87,2.0463]
[1641336865809,1.44850786,168.95,168.87,2.0463]
[1641336866010,1.70850786,168.95,168.87,2.0463]
[1641336868015,0.26,168.95,168.87,1.7863]
[1641336868514,1.44850786,168.95,168.87,1.7863]
[1641336868912,1.70850786,168.95,168.87,1.7863]
[1641336869913,10.22850786,168.95,168.87,0.5]
[1641336870313,10.22850786,168.95,168.84,23.0555]
[1641336870519,10.22850786,168.95,168.84,23.8155]
[1641336870715,10.22850786,168.95,168.85,1.2371]
[1641336870917,10.22850786,168.95,168.85,1.7371]
[1641336871114,10.22850786,168.95,168.85,1.9971]
[1641336871414,10.22850786,168.95,168.85,1.7371]
[1641336871615,10.72850786,168.95,168.85,1.7371]
[1641336873215,10.72850786,168.95,168.85,1.2371]
[1641336879752,10.72850786,168.95,168.84,23.0555]
[1641336879952,10.72850786,168.95,168.84,23.3155]
[1641336881152,19.41870786,168.95,168.84,23.3155]
[1641336881552,43.42870786,168.95,168.84,23.3155]
[1641336881753,43.42870786,168.95,168.81,1.2564]
[1641336882152,52.31610786,168.95,168.81,1.2564]
[1641336882952,52.31610786,168.95,168.81,1.5164]
[1641336883152,52.31610786,168.95,168.81,1.2564]
[1641336884354,52.31610786,168.95,168.81,1.7564]
[1641336884554,52.31610786,168.95,168.81,2.0164]
[1641336884754,52.31610786,168.95,168.81,1.5164]
[1641336886156,52.31610786,168.95,168.81,2.0164]
[1641336887161,51.81610786,168.95,168.81,2.0164]
[1641336888361,51.81610786,168.95,168.81,1.7564]
[1641336888564,8.8877,168.94,168.81,1.2564]
[1641336888759,8.52,168.93,168.81,1.2564]
[1641336888960,23.2454,168.92,168.81,1.2564]
[1641336889161,33.21390786,168.92,168.81,1.2564]
[1641336889360,33.97390786,168.92,168.81,1.2564]
[1641336889561,1.44850786,168.91,168.81,1.2564]